bitfinex/quotes_SOLUSD_20260226
["timestamp","ask_amount","ask_price","bid_price","bid_amount"]
[1772123488593,12.03333155,86.628,86.601,0.49100554]
[1772123488800,11.54299422,86.633,86.603,0.49100554]
[1772123489104,0.48971979,86.629,86.603,0.49100554]
[1772123490383,11.54361176,86.628,86.603,0.49100554]
[1772123490583,12.03333155,86.628,86.603,0.49100554]
[1772123490986,12.03333155,86.628,86.604,11.54681077]
[1772123491190,12.03333155,86.628,86.605,0.49100554]
[1772123491801,11.54361176,86.628,86.605,0.49100554]
[1772123491978,0.48971979,86.627,86.6,0.2]
[1772123492180,0.48971979,86.627,86.601,11.54721077]
[1772123492384,0.48971979,86.627,86.602,0.49100554]
[1772123492687,0.48971979,86.625,86.602,0.49100554]
[1772123494389,11.5441448,86.624,86.602,0.49100554]
[1772123495490,12.06210554,86.624,86.602,0.49100554]
[1772123497007,12.06210554,86.624,86.6,3.88175071]
[1772123497008,12.05797574,86.655,86.611,0.51484795]
[1772123497188,0.51796074,86.654,86.621,0.51484795]
[1772123498691,0.51796074,86.652,86.622,0.51484795]
[1772123499306,11.53815089,86.669,86.641,0.51484795]
[1772123499506,11.53750633,86.674,86.651,0.51484795]
[1772123499805,11.53613257,86.685,86.661,0.52339431]
[1772123500108,11.53512339,86.692,86.671,0.52339431]
[1772123500885,11.53512339,86.692,86.66,3.68175071]
[1772123501104,0.51959101,86.669,86.628,0.52339431]
[1772123501408,0.51959101,86.659,86.628,0.52339431]
[1772123501911,3.68175071,86.65,86.628,0.52339431]
[1772123502089,0.51959101,86.651,86.628,0.52339431]
[1772123502489,0.51959101,86.649,86.612,12.06905209]
[1772123502710,0.51959101,86.649,86.6,0.2]
[1772123502711,0.51959101,86.629,86.6,0.2]
[1772123503090,0.51959101,86.627,86.6,0.2]
[1772123503285,0.51959101,86.627,86.6,0.72339431]
[1772123503498,0.51959101,86.627,86.601,0.52339431]
[1772123505313,11.54387828,86.626,86.601,0.52339431]
[1772123505495,12.06346929,86.626,86.601,0.52339431]
[1772123506091,0.51959101,86.625,86.601,0.52339431]
[1772123507613,11.5441448,86.624,86.601,0.52339431]
[1772123508205,0.51959101,86.636,86.602,0.52339431]
[1772123508607,0.51959101,86.629,86.6,0.2]
[1772123510715,40.39844407,86.637,86.59,0.2]
[1772123510716,0.51959101,86.609,86.59,0.2]
[1772123510897,0.51959101,86.609,86.575,0.52339431]
[1772123511211,0.51959101,86.609,86.533,104.5]
[1772123511212,9.88461326,86.59,86.551,0.52339431]
[1772123511404,0.51959101,86.579,86.551,0.52339431]
[1772123511814,178.92598235,86.628,86.531,0.52339431]
[1772123511815,0.51959101,86.559,86.531,0.52339431]
[1772123512593,0.51959101,86.568,86.533,0.52339431]
[1772123512797,0.51959101,86.578,86.541,0.52339431]
[1772123513810,0.51959101,86.569,86.541,0.52339431]
[1772123514720,0.51959101,86.577,86.541,0.52339431]
[1772123514899,0.51959101,86.577,86.543,0.52339431]
[1772123516509,0.51959101,86.569,86.53,10.08461326]
[1772123516716,0.51959101,86.569,86.536,0.52339431]
[1772123517019,0.51959101,86.567,86.536,0.52339431]
[1772123518026,0.51959101,86.567,86.54,9.88461326]
[1772123518227,0.51959101,86.567,86.536,0.52339431]
[1772123519102,11.55187949,86.566,86.536,0.52339431]
[1772123519305,12.0714705,86.566,86.536,0.52339431]
[1772123519927,0.51959101,86.565,86.536,0.52339431]
[1772123520126,0.51959101,86.565,86.537,11.55575071]
[1772123520328,0.51959101,86.565,86.537,0.52339431]
[1772123520822,0.51959101,86.582,86.542,0.52339431]
[1772123521005,28.87260142,86.588,86.542,0.52339431]
[1772123521006,0.51959101,86.58,86.542,0.52339431]
[1772123521206,0.51959101,86.578,86.543,0.52339431]
[1772123522632,0.51959101,86.578,86.551,0.52339431]
[1772123523618,0.51959101,86.56,86.53,0.2]
[1772123523823,0.51959101,86.56,86.531,11.55655198]
[1772123524026,9.88461326,86.56,86.53,10.08461326]
[1772123524225,0.51959101,86.559,86.53,10.08461326]
[1772123524724,0.51959101,86.549,86.51,10.08461326]
[1772123525627,0.51959101,86.547,86.511,0.52281163]
[1772123525831,0.51959101,86.547,86.51,10.08461326]
[1772123526637,0.51959101,86.547,86.511,0.52235281]
[1772123527012,0.51959101,86.539,86.51,0.2]
[1772123527641,0.51959101,86.539,86.511,0.52189927]
[1772123527813,11.55561718,86.538,86.511,0.52189927]
[1772123528019,0.51959101,86.549,86.52,9.88461326]
[1772123528322,0.51959101,86.549,86.521,0.52145093]
[1772123528522,0.51959101,86.556,86.521,0.52145093]
[1772123530238,0.48093903,86.575,86.53,9.88461326]
[1772123530446,0.48093903,86.575,86.541,0.48158896]
[1772123531329,0.48093903,86.594,86.551,0.48158896]
[1772123531528,0.48093903,86.594,86.561,0.48158896]
[1772123532344,11.54641079,86.607,86.581,0.48158896]
[1772123533645,12.02527387,86.623,86.6,9.88461326]
[1772123534141,0.48093903,86.641,86.61,9.88461326]
[1772123534642,11.54151491,86.644,86.62,9.88461326]
[1772123534820,0.48093903,86.651,86.63,9.88461326]
[1772123535019,0.48093903,86.66,86.63,9.88461326]
[1772123535226,12.01908992,86.669,86.64,9.88461326]
[1772123535621,38.72662559,86.68,86.65,9.88461326]
[1772123535622,11.53761158,86.674,86.65,9.88461326]
[1772123535837,0.48093903,86.669,86.602,40.41477101]
[1772123536052,0.48093903,86.639,86.6,9.88461326]
[1772123536218,0.48093903,86.637,86.6,21.43188584]
[1772123536539,0.48093903,86.637,86.6,9.88461326]
[1772123536834,0.48093903,86.637,86.61,9.88461326]
[1772123537034,0.48093903,86.637,86.602,0.48158896]
[1772123538437,0.48093903,86.635,86.6,9.88461326]
[1772123538645,0.48093903,86.635,86.6,21.43194249]
[1772123539044,0.48093903,86.635,86.6,9.88461326]
[1772123539239,0.48093903,86.629,86.59,9.88461326]
[1772123539442,0.48093903,86.619,86.58,9.88461326]
[1772123539624,0.48093903,86.619,86.59,9.88461326]
[1772123540639,11.54441746,86.622,86.592,0.48158896]
[1772123540940,11.54441746,86.622,86.6,9.88461326]
[1772123541143,11.54384305,86.627,86.6,9.88461326]
[1772123541547,0.48093903,86.626,86.592,0.48158896]
[1772123542147,0.48093903,86.609,86.57,9.88461326]
[1772123542338,0.48093903,86.599,86.561,0.48158896]
[1772123542537,0.48093903,86.597,86.561,0.48158896]
[1772123542744,0.48093903,86.589,86.551,0.48158896]
[1772123543047,0.48093903,86.579,86.541,0.48158896]
[1772123543251,0.48093903,86.579,86.543,11.55490621]
[1772123543632,0.48093903,86.579,86.55,9.88461326]
[1772123544647,11.55027836,86.578,86.55,21.43860034]
[1772123544862,11.55027836,86.578,86.55,11.55398708]
[1772123545162,9.88461326,86.56,86.53,9.88461326]
[1772123545446,0.48093903,86.549,86.511,11.55922368]
[1772123545829,0.48093903,86.549,86.512,0.48158896]
[1772123546430,0.48093903,86.529,86.51,0.2]
[1772123547551,0.48093903,86.539,86.511,11.55922368]
[1772123547742,11.55308062,86.557,86.53,9.88461326]
[1772123548055,11.55188058,86.566,86.531,0.48158896]
[1772123548241,11.55188058,86.566,86.54,9.88461326]
[1772123548948,11.5506786,86.575,86.541,0.48158896]
[1772123549475,12.03161763,86.575,86.541,0.48158896]
[1772123549834,0.48093903,86.575,86.541,0.48158896]
[1772123550359,0.48093903,86.584,86.55,10.36620222]
[1772123551037,11.54961135,86.583,86.551,11.55388152]
[1772123551640,0.48093903,86.582,86.551,11.55388152]
[1772123552654,0.48093903,86.58,86.551,11.55388152]
[1772123553046,0.48093903,86.58,86.55,21.43861727]
[1772123554352,0.48093903,86.58,86.55,9.88461326]
[1772123554555,0.48093903,86.577,86.54,9.88461326]
[1772123556262,0.49776938,86.588,86.551,0.50555385]
[1772123556558,0.49776938,86.588,86.561,11.55254675]
[1772123557466,0.49776938,86.588,86.56,9.88461326]
[1772123557467,11.5490778,86.587,86.56,9.88461326]
[1772123557648,11.5490778,86.587,86.54,9.88461326]
[1772123557649,0.49776938,86.579,86.54,9.88461326]
[1772123557837,0.49776938,86.579,86.543,11.55494956]
[1772123558042,0.49776938,86.549,86.51,12.26488042]
[1772123558266,0.49776938,86.549,86.511,0.50555385]
[1772123558869,3.69383402,86.585,86.51,21.64393983]
[1772123558870,0.49776938,86.529,86.51,0.2]
[1772123559161,9.88461326,86.52,86.486,0.50555385]
[1772123559357,0.49776938,86.519,86.482,11.56301569]
[1772123559555,0.49364234,86.509,86.48,0.2]
[1772123559961,3.69383402,86.545,86.48,0.2]
[1772123559962,0.49364234,86.499,86.48,0.2]
[1772123560259,0.49364234,86.499,86.47,0.1]
[1772123560647,0.49364234,86.512,86.48,9.88461326]
[1772123560855,0.49364234,86.512,86.472,12.05481755]
[1772123561659,0.49364234,86.509,86.472,0.49038051]
[1772123562143,11.55721979,86.526,86.49,9.88461326]
[1772123562464,0.49364234,86.525,86.49,9.88461326]
[1772123563264,11.55748694,86.524,86.49,9.90835074]
[1772123563446,0.49364234,86.523,86.49,9.90835074]
[1772123565554,0.49364234,86.543,86.511,0.49038051]
[1772123565756,0.49364234,86.552,86.52,9.90835074]
[1772123566469,0.49364234,86.549,86.511,0.49038051]
[1772123567769,0.49364234,86.547,86.512,11.55909006]
[1772123567950,0.49364234,86.519,86.48,9.90835074]
[1772123568154,9.90835074,86.49,86.454,0.49038051]
[1772123568360,10.40199308,86.49,86.454,0.49038051]
[1772123568669,0.49364234,86.49,86.46,9.90835074]
[1772123569551,0.49364234,86.488,86.46,9.90835074]
[1772123569868,0.49364234,86.488,86.456,11.56646453]
[1772123570066,0.49364234,86.488,86.45,10.00835074]
[1772123570369,0.49364234,86.488,86.461,11.56590832]
[1772123570566,0.49364234,86.488,86.456,11.56648933]
[1772123570765,0.49364234,86.488,86.461,11.56590832]
[1772123570966,0.49364234,86.488,86.45,0.1]
[1772123571165,0.49364234,86.479,86.45,0.1]
[1772123571357,0.49364234,86.479,86.45,10.00835074]
[1772123572059,0.49364234,86.459,86.415,0.49038051]
[1772123572257,10.40199308,86.45,86.42,9.90835074]
[1772123572462,9.90835074,86.45,86.415,0.49038051]
[1772123572664,9.90835074,86.45,86.415,12.0623321]
[1772123572863,9.90835074,86.45,86.416,11.57193112]
[1772123573064,9.90835074,86.45,86.42,9.90835074]
[1772123573274,9.90835074,86.46,86.421,0.49038051]
[1772123574260,11.56617587,86.459,86.422,11.57112772]
[1772123574464,11.56617587,86.459,86.423,0.49038051]
[1772123574771,12.05981821,86.459,86.423,0.49038051]
[1772123575353,11.56617587,86.459,86.43,9.90835074]
[1772123575557,0.49364234,86.468,86.44,10.39873125]
[1772123575756,11.56510576,86.467,86.44,10.39873125]
[1772123576582,0.49364234,86.466,86.431,0.49038051]
[1772123576881,0.49364234,86.466,86.44,9.90835074]
[1772123577471,0.49364234,86.466,86.431,0.49038051]
[1772123578283,11.56510576,86.467,86.404,3.69383402]
[1772123578284,0.49364234,86.459,86.42,10.39873125]
[1772123578579,12.06115613,86.449,86.421,0.49038051]
[1772123578788,11.56700868,86.453,86.422,0.49038051]
[1772123579383,0.49364234,86.449,86.41,10.39873125]
[1772123579579,0.49364234,86.439,86.41,0.49038051]
[1772123579974,0.49364234,86.439,86.401,12.06432062]
[1772123580469,0.49364234,86.439,86.402,0.49038051]
[1772123580768,0.49364234,86.419,86.4,0.1]
[1772123580961,10.40199308,86.41,86.39,0.2]
[1772123581380,0.49364234,86.429,86.392,0.49038051]
[1772123581686,0.49364234,86.429,86.391,11.57527983]
[1772123581687,0.49364234,86.429,86.401,0.49038051]
[1772123581997,11.56898586,86.438,86.401,0.49038051]
[1772123582285,9.90835074,86.43,86.401,0.49038051]
[1772123582786,0.49364234,86.428,86.391,0.49038051]
[1772123583178,0.49364234,86.419,86.39,0.2]
[1772123583375,0.49364234,86.419,86.39,10.10835074]
[1772123583572,0.49364234,86.419,86.39,10.59873125]
[1772123583783,0.49364234,86.428,86.392,0.49038051]
[1772123583995,11.56939727,86.435,86.401,0.49038051]
[1772123584489,11.56873674,86.44,86.411,0.49038051]
[1772123584984,28.91561258,86.459,86.421,0.49038051]
[1772123585188,9.90835074,86.45,86.421,0.49038051]
[1772123585367,0.49364234,86.449,86.412,12.06284729]
[1772123585573,0.49364234,86.449,86.413,0.49038051]
[1772123586486,9.90835074,86.45,86.413,0.49038051]
[1772123586789,11.56522168,86.467,86.441,0.49038051]
[1772123586988,0.49364234,86.476,86.442,11.56845052]
[1772123587188,9.90835074,86.47,86.441,0.49038051]
[1772123587494,0.49364234,86.469,86.432,0.49038051]
[1772123588687,0.49364234,86.469,86.44,9.90835074]
[1772123589484,0.50720113,86.467,86.439,0.49038051]
[1772123589781,0.50720113,86.467,86.44,11.56871818]
[1772123589992,0.50720113,86.467,86.439,0.49038051]
[1772123590373,0.50720113,86.467,86.432,11.569784]
[1772123590568,0.50720113,86.467,86.396,46.2983087]
[1772123590569,0.50720113,86.459,86.41,0.45937525]
[1772123590775,9.90835074,86.44,86.41,10.36772599]
[1772123591283,0.50720113,86.441,86.41,21.9404088]
[1772123591489,21.47706892,86.44,86.41,21.9404088]
[1772123591675,21.98427005,86.44,86.411,0.45937525]
[1772123592176,12.07591931,86.44,86.411,0.45937525]
[1772123593768,12.07591931,86.44,86.402,0.45937525]
[1772123593769,0.50720113,86.439,86.402,0.45937525]
[1772123594193,0.50720113,86.439,86.403,0.45937525]
[1772123594875,0.50720113,86.439,86.404,0.45937525]
[1772123595069,21.47706892,86.44,86.411,0.45937525]
[1772123595669,21.47706892,86.44,86.412,11.57246678]
[1772123595873,11.56824146,86.444,86.413,0.45937525]
[1772123596680,0.50720113,86.443,86.413,0.45937525]
[1772123597297,9.90835074,86.44,86.413,0.45937525]
[1772123597494,0.50720113,86.439,86.4,9.90835074]
[1772123597689,0.50720113,86.429,86.396,0.45937525]
[1772123597895,0.50720113,86.427,86.396,0.45937525]
[1772123598780,0.50720113,86.427,86.396,12.03394383]
[1772123598996,0.50720113,86.427,86.396,0.45937525]
[1772123599492,0.50720113,86.409,86.39,0.2]
[1772123599698,0.50720113,86.418,86.39,0.65937525]
[1772123599991,11.57179721,86.417,86.39,0.65937525]
[1772123600396,0.50720113,86.409,86.39,0.2]
[1772123600794,40.50129024,86.417,86.361,0.45937525]
[1772123600795,0.50720113,86.399,86.361,0.45937525]
[1772123601302,0.50720113,86.399,86.361,12.03867609]
[1772123601599,0.50720113,86.389,86.352,0.45937525]
[1772123601899,9.90835074,86.38,86.352,0.45937525]
[1772123602081,0.50720113,86.387,86.352,12.03979495]
[1772123602281,0.50720113,86.387,86.353,0.45937525]
[1772123603592,3.69383402,86.417,86.352,11.5804197]
[1772123603593,9.90835074,86.4,86.361,0.45937525]
[1772123603794,21.4824319,86.4,86.362,11.57916676]
[1772123603987,21.4824319,86.4,86.363,0.45937525]
[1772123604612,11.57358201,86.404,86.371,0.45937525]
[1772123605501,0.50720113,86.399,86.36,9.90835074]
[1772123605690,0.50720113,86.399,86.35,0.2]
[1772123605691,0.50720113,86.389,86.351,0.45937525]
[1772123605889,9.90835074,86.38,86.351,12.04001704]
[1772123606085,9.90835074,86.37,86.35,0.2]
[1772123606602,0.50720113,86.359,86.33,0.2]
[1772123606783,9.90835074,86.34,86.33,1e-08]
[1772123607199,0.50720113,86.349,86.33,1e-08]
[1772123607496,9.90835074,86.34,86.33,1e-08]
[1772123607890,0.50720113,86.339,86.267,46.36756964]
[1772123608092,0.50720113,86.339,86.24,0.2]
[1772123608093,5.36086188,86.299,86.24,0.2]
[1772123608292,5.36086188,86.299,86.17,7.59505622]
[1772123608293,9.0546959,86.266,86.155,0.50855406]
[1772123608509,5.36086188,86.266,86.181,0.50855406]
[1772123608803,9.90835074,86.28,86.124,6.03271891]
[1772123608804,9.90835074,86.24,86.201,0.50855406]
[1772123609196,9.90835074,86.22,86.18,9.90835074]
[1772123609400,9.90835074,86.19,86.163,0.50855406]
[1772123609599,9.90835074,86.17,86.13,0.50855406]
[1772123609805,3.69383402,86.216,86.075,46.47087352]
[1772123609806,9.90835074,86.16,86.124,0.50855406]
[1772123610002,3.69383402,86.217,86.135,0.50855406]
[1772123610003,9.90835074,86.17,86.135,0.50855406]
[1772123610310,11.59433732,86.249,86.161,0.50855406]
[1772123610498,9.90835074,86.22,86.181,0.50855406]
[1772123610814,9.90835074,86.21,86.181,0.50855406]
[1772123610990,9.90835074,86.22,86.181,0.50855406]
[1772123611305,9.90835074,86.23,86.191,0.50855406]
[1772123611690,9.90835074,86.22,86.18,9.90835074]
[1772123611914,9.90835074,86.22,86.18,10.4169048]
[1772123612118,9.90835074,86.22,86.182,0.50855406]
[1772123612410,9.90835074,86.22,86.181,11.60348568]
[1772123612411,9.90835074,86.24,86.201,0.50855406]
[1772123612811,9.90835074,86.25,86.211,0.50855406]
[1772123612997,11.5935308,86.255,86.22,10.4169048]
[1772123613205,9.90835074,86.25,86.22,0.50855406]
[1772123613802,40.57735782,86.255,86.186,0.50855406]
[1772123613996,9.90835074,86.26,86.221,0.50855406]
[1772123614191,11.59184783,86.268,86.231,0.50855406]
[1772123614391,9.90835074,86.28,86.241,0.50855406]
[1772123615406,9.90835074,86.27,86.241,0.50855406]
[1772123616007,9.90835074,86.27,86.23,0.50855406]
[1772123616208,11.59299319,86.259,86.23,0.50855406]
[1772123616502,9.90835074,86.26,86.232,0.50855406]
[1772123616708,9.90835074,86.28,86.241,0.50855406]
[1772123617607,9.90835074,86.27,86.232,0.50855406]
[1772123617806,9.90835074,86.27,86.231,11.59675754]
[1772123617807,9.90835074,86.25,86.21,10.4169048]
[1772123618008,3.69383402,86.276,86.21,0.50855406]
[1772123618009,9.90835074,86.24,86.21,0.50855406]
[1772123618205,3.69383402,86.276,86.156,46.42711961]
[1772123618206,9.90835074,86.22,86.192,0.50855406]
[1772123618401,9.90835074,86.23,86.192,0.50855406]
[1772123618601,11.59634218,86.235,86.192,0.50855406]
[1772123618792,92.70307,86.298,86.211,0.50855406]
[1772123618793,9.90835074,86.25,86.211,0.50855406]
[1772123619104,9.90835074,86.23,86.211,0.50855406]
[1772123619487,9.90835074,86.22,86.177,0.50855406]
[1772123619685,9.90835074,86.23,86.191,0.50855406]
[1772123619897,9.90835074,86.22,86.191,0.50855406]
[1772123620102,9.90835074,86.22,86.157,46.42667811]
[1772123620103,40.60371929,86.199,86.151,0.50855406]
[1772123620297,9.90835074,86.17,86.151,0.50855406]
[1772123620507,9.90835074,86.17,86.139,0.50855406]
[1772123620894,9.90835074,86.17,86.135,11.60968247]
[1772123621105,9.90835074,86.17,86.136,0.50855406]
[1772123622015,9.90835074,86.18,86.141,0.50855406]
[1772123622215,9.90835074,86.18,86.143,0.50855406]
[1772123622509,9.90835074,86.18,86.142,11.60873905]
[1772123622510,9.90835074,86.18,86.151,0.50855406]
[1772123622704,9.90835074,86.17,86.139,0.50855406]
[1772123623417,9.90835074,86.18,86.141,0.50855406]
[1772123623910,9.90835074,86.19,86.151,0.50855406]
[1772123624310,3.69383402,86.216,86.119,3.69383402]
[1772123624311,9.90835074,86.17,86.136,0.50855406]
[1772123625016,9.90835074,86.19,86.151,0.50855406]
[1772123625206,11.60106265,86.199,86.161,0.50855406]
[1772123625717,9.98520624,86.19,86.161,0.50855406]
[1772123625913,11.60106265,86.199,86.163,0.50855406]
[1772123626507,9.98520624,86.2,86.163,0.50855406]
[1772123626703,9.98520624,86.21,86.171,0.50855406]
[1772123626904,9.98520624,86.23,86.191,0.50855406]
[1772123627106,21.57940913,86.25,86.211,0.50855406]
[1772123628210,21.57940913,86.25,86.211,12.10794772]
[1772123628512,21.57940913,86.25,86.212,0.50855406]
[1772123629121,9.98520624,86.26,86.221,0.50855406]
[1772123630130,9.98520624,86.25,86.21,12.10808376]
[1772123630420,9.98520624,86.25,86.211,0.50855406]
[1772123630724,11.59299319,86.259,86.221,0.50855406]
[1772123631404,9.98520624,86.26,86.221,0.50855406]
[1772123631707,11.59238145,86.264,86.231,0.50855406]
[1772123632109,9.98520624,86.25,86.217,0.50855406]
[1772123632310,9.98520624,86.25,86.219,0.50855406]
[1772123632507,9.98520624,86.28,86.218,11.59850611]
[1772123632508,9.98520624,86.26,86.221,0.50855406]
[1772123633222,9.98520624,86.26,86.231,0.50855406]
[1772123634008,11.59433732,86.249,86.22,0.50855406]
[1772123634422,11.59433732,86.249,86.221,11.59810255]
[1772123634607,11.59371344,86.254,86.222,0.50855406]
[1772123636726,11.59299319,86.259,86.222,0.50855406]
[1772123637318,11.59299319,86.259,86.224,0.50855406]
[1772123637708,9.98520624,86.25,86.224,0.50855406]
[1772123637927,9.98520624,86.24,86.201,0.50855406]
[1772123638522,9.98520624,86.24,86.179,3.69383402]
[1772123638726,11.59299319,86.259,86.118,0.50855406]
[1772123638727,3.69383402,86.183,86.118,0.50855406]
[1772123638944,9.98520624,86.13,86.107,0.50855406]
[1772123639312,3.69383402,86.172,86.107,0.50855406]
[1772123639615,9.98520624,86.15,86.111,0.50855406]
[1772123641112,3.69383402,86.185,86.111,0.50855406]
[1772123641113,9.98520624,86.14,86.111,0.50855406]
[1772123641412,9.98520624,86.14,86.085,29.04086454]
[1772123641413,9.98520624,86.13,86.099,0.50855406]
[1772123641612,9.98520624,86.12,86.099,0.50855406]
[1772123641929,9.98520624,86.13,86.099,0.50855406]
[1772123643013,11.61049123,86.129,86.099,0.50855406]
[1772123643416,40.63671932,86.129,86.099,0.50855406]
[1772123644624,11.61049123,86.129,86.099,0.50855406]
[1772123644835,11.61049123,86.129,86.101,0.50855406]
[1772123646231,11.61049123,86.129,86.09,21.60083699]
[1772123646232,9.98520624,86.12,86.071,0.50855406]
[1772123646432,9.98520624,86.1,86.06,9.98520624]
[1772123646635,9.98520624,86.09,86.051,40.67355405]
[1772123646940,9.98520624,86.09,86.051,11.62101544]
[1772123647123,9.98520624,86.09,86.05,0.1]
[1772123647321,9.98520624,86.09,86.05,10.08520624]
[1772123648132,9.98520624,86.07,86.05,0.1]
[1772123648835,9.98520624,86.06,86.018,0.47058293]
[1772123649027,9.98520624,86.05,86.021,0.47058293]
[1772123649221,9.98520624,86.04,86.0,0.47058293]
[1772123649438,9.98520624,86.04,86.001,0.47058293]
[1772123651342,11.62128554,86.049,86.011,0.51494059]
[1772123651840,9.98520624,86.05,86.021,0.51494059]
[1772123652219,137.27186681,86.092,86.01,9.98520624]
[1772123652220,9.98520624,86.04,86.01,0.51494059]
[1772123652417,183.73379126,86.092,86.011,0.51494059]
[1772123652418,9.98520624,86.05,86.011,0.51494059]
[1772123652840,9.98520624,86.06,86.021,0.51494059]
[1772123653435,9.98520624,86.05,86.021,11.62504049]
[1772123654340,9.98520624,86.05,86.011,11.62641987]
[1772123654642,9.98520624,86.04,86.0,21.61309615]
[1772123654843,9.98520624,86.03,86.0,11.62788991]
[1772123655340,9.98520624,86.04,86.001,0.51494059]
[1772123655519,41.13920507,86.049,86.0,21.61309615]
[1772123655520,11.62128554,86.049,86.011,0.51494059]
[1772123655724,11.61993516,86.059,86.011,0.51494059]
[1772123655932,9.98520624,86.05,86.021,0.51494059]
[1772123656120,11.61993516,86.059,86.011,0.51494059]
[1772123656121,9.98520624,86.04,86.011,0.51494059]
[1772123656538,9.98520624,86.04,86.012,11.6262847]
[1772123656728,9.98520624,86.04,86.013,0.51494059]
[1772123656931,11.62202736,86.044,86.013,0.51494059]
[1772123657332,11.62202736,86.044,86.012,11.6262847]
[1772123657333,9.98520624,86.06,86.021,0.51494059]
[1772123657538,11.62033853,86.057,86.021,0.51494059]
[1772123657735,9.98520624,86.08,86.041,0.51494059]
[1772123657944,11.61744207,86.078,86.041,0.51494059]
[1772123658523,11.61588588,86.089,86.06,9.98520624]
[1772123658730,0.46470567,86.102,86.061,0.51494059]
[1772123658933,11.61318793,86.109,86.07,10.50014683]
[1772123659126,9.98520624,86.1,86.07,0.51494059]
[1772123659331,9.98520624,86.1,86.06,9.98520624]
[1772123659540,9.98520624,86.1,86.061,0.51494059]
[1772123659746,11.61318793,86.109,86.071,0.51494059]
[1772123660326,9.98520624,86.11,86.08,10.50014683]
[1772123660549,40.64615777,86.109,86.08,0.51494059]
[1772123660738,9.98520624,86.1,86.061,0.51494059]
[1772123660926,9.98520624,86.1,86.062,0.51494059]
[1772123661738,9.98520624,86.1,86.037,0.51494059]
[1772123661739,9.98520624,86.07,86.037,0.51494059]
[1772123662450,0.46470567,86.079,86.041,0.51494059]
[1772123662643,9.98520624,86.07,86.042,11.622231]
[1772123663045,11.61737029,86.078,86.043,0.51494059]
[1772123663935,9.98520624,86.07,86.031,0.51494059]
[1772123664141,9.98520624,86.06,86.024,0.51494059]
[1772123664340,9.98520624,86.07,86.031,0.51494059]
[1772123665041,9.98520624,86.07,86.033,0.51494059]
[1772123665542,11.61858508,86.069,86.033,0.51494059]
[1772123665865,9.98520624,86.07,86.033,0.51494059]
[1772123666352,9.98520624,86.06,86.033,0.51494059]
[1772123666542,9.98520624,86.07,86.033,0.51494059]
[1772123667143,9.98520624,86.07,86.035,0.51494059]
[1772123667954,0.46470567,86.069,86.035,0.51494059]
[1772123668258,11.61723533,86.079,86.034,40.68159099]
[1772123668468,11.61723533,86.079,86.049,0.51494059]
[1772123668956,9.98520624,86.09,86.051,0.51494059]
[1772123669173,11.61453675,86.099,86.063,0.51494059]
[1772123669653,9.98520624,86.09,86.063,0.51494059]
[1772123670856,40.65087863,86.099,86.042,0.51494059]
[1772123670857,0.46470567,86.089,86.042,0.51494059]
[1772123671042,9.98520624,86.08,86.042,0.51494059]
[1772123671453,11.61723533,86.079,86.044,0.51494059]
[1772123671762,9.98520624,86.07,86.031,0.51494059]
[1772123672055,9.98520624,86.07,86.032,0.51494059]
[1772123672258,9.98520624,86.06,86.032,0.51494059]
[1772123672556,9.98520624,86.05,86.021,0.51494059]
[1772123672745,9.98520624,86.04,86.021,0.51494059]
[1772123672944,9.98520624,86.04,86.014,12.14095495]
[1772123673147,9.98520624,86.05,86.015,0.51494059]
[1772123673656,9.98520624,86.05,86.021,0.51494059]
[1772123673851,11.62128554,86.049,86.021,0.51494059]
[1772123674652,9.98520624,86.05,86.021,0.51494059]
[1772123674954,9.52099706,109.09,86.041,0.49944141]
[1772123674955,21.60095719,86.09,86.041,0.49944141]
[1772123675155,21.60095719,86.09,86.051,0.49944141]
[1772123675735,21.60095719,86.09,86.053,0.49944141]
[1772123675954,21.60095719,86.09,86.016,46.50297619]
[1772123675955,9.98520624,86.08,86.038,0.49944141]
[1772123676137,11.61575095,86.09,86.035,0.49944141]
[1772123676138,9.98520624,86.06,86.035,0.49944141]
[1772123676348,9.98520624,86.05,86.024,0.49944141]
[1772123676850,9.98520624,86.06,86.024,0.49944141]
[1772123677075,9.98520624,86.07,86.031,0.49944141]
[1772123677633,11.61858508,86.069,86.032,11.62358192]
[1772123677834,11.61858508,86.069,86.033,0.49944141]
[1772123678362,9.98520624,86.06,86.033,0.49944141]
[1772123678536,0.48173431,86.039,85.998,0.49944141]
[1772123678741,9.98520624,86.03,85.998,0.49944141]
[1772123679041,0.48173431,86.009,85.959,11.63345315]
[1772123679240,9.98520624,86.04,85.943,24.5857103]
[1772123679241,9.98520624,85.97,85.943,24.5857103]
[1772123679441,9.98520624,85.96,85.943,19.04213387]
[1772123679764,9.98520624,85.98,85.943,19.04213387]
[1772123679937,9.98520624,85.97,85.943,19.04213387]
[1772123680132,9.98520624,85.98,85.943,30.67771723]
[1772123680553,9.98520624,85.97,85.943,30.67771723]
[1772123680851,0.4797862,85.979,85.943,19.04213387]
[1772123681160,9.98520624,85.98,85.93,0.1]
[1772123681161,9.98520624,85.95,85.93,0.1]
[1772123681343,9.98520624,85.95,85.931,11.63724383]
[1772123681656,9.98520624,85.96,85.93,0.1]
[1772123681833,87.22045841,85.989,85.93,0.1]